Workbook

Sheet Tool
B1: Flächen-masse | C1: Abstand | D1: Fugen-anteil | E1: Grundbauteil | F1: Terzband-Mittenfrequenz in Hz
B2: kg/m² | C2: mm | D2: 1 | F2: 50 | G2: 63 | H2: 80 | I2: 100 | J2: 125 | K2: 160 | L2: 200 | M2: 250 | N2: 315 | O2: 400 | P2: 500 | Q2: 630 | R2: 800 | S2: 1000 | T2: 1250 | U2: 1600 | V2: 2000 | W2: 2500 | X2: 3150 | Y2: 4000 | Z2: 5000 | AB2: EZW
A3: Eingabewert | B3: 20 | C3: 230 | D3: 0.01 | E3: Schalldämmmaß | F3: 29.71803882 | G3: 28.2 | H3: 37.9 | I3: 40.9 | J3: 42.4 | K3: 36.6 | L3: 38.4 | M3: 40.3 | N3: 41.2 | O3: 42.8 | P3: 46.8 | Q3: 48.4 | R3: 47.3 | S3: 46.1 | T3: 40.5 | U3: 42.4 | V3: 45.1 | W3: 48 | X3: 52.3 | Y3: 55.5 | Z3: 58.1 | AB3: =einzahlwert($I$3:$X$3) -> 46
A4: Maximalwert | B4: 48 | C4: 252 | D4: 0.0163
A5: Minimalwert | B5: 3.4 | C5: 215 | D5: 0
B6: =IF(AND(B3<=B4,B3>=B5),"","FEHLER") ->  | C6: =IF(AND(C3<=C4,C3>=C5),"","FEHLER") ->  | D6: =IF(AND(D3<=D4,D3>=D5),"","FEHLER") ->  | E6: Verbesserungsmaß | F6: =F112+F114+F111+F113+F115 -> -6.007292011 | G6: -4.059738236 | H6: -3.907440521 | I6: -1.855117832 | J6: 1.803009748 | K6: 4.812161596 | L6: 8.781940854 | M6: 13.37230189 | N6: 13.39727982 | O6: 13.59150687 | P6: 13.71207494 | Q6: 12.33737989 | R6: 12.64892767 | S6: 12.57816683 | T6: 9.825237683 | U6: 8.576294942 | V6: 8.462082183 | W6: 6.993088426 | X6: 7.298389518 | Y6: 8.285474423 | Z6: 7.799187061 | AB6: =AB7-AB3 -> 10
A7: =IF(COUNTIF(B6:D6,"FEHLER")>0,"FEHLER IN EINGABE","Eingabe in Ordnung") -> Eingabe in Ordnung | E7: Schalldämmmaß | F7: =F6+F3 -> 23.7107468 | G7: 24.14026176 | H7: 33.99255948 | I7: 39.04488217 | J7: 44.20300975 | K7: 41.4121616 | L7: 47.18194085 | M7: 53.67230189 | N7: 54.59727982 | O7: 56.39150687 | P7: 60.51207494 | Q7: 60.73737989 | R7: 59.94892767 | S7: 58.67816683 | T7: 50.32523768 | U7: 50.97629494 | V7: 53.56208218 | W7: 54.99308843 | X7: 59.59838952 | Y7: 63.78547442 | Z7: 65.89918706 | AB7: =einzahlwert(I7:X7) -> 56
D9: Grundbauteil auswahl: | E9: SHB Ziegel | F9: =INDEX(Drop_downs!B3:B4,MATCH($E$9,Drop_downs!$A$3:$A$4,0)) -> 29.71803882 | G9: =INDEX(Drop_downs!C3:C4,MATCH($E$9,Drop_downs!$A$3:$A$4,0)) -> 28.2 | H9: =INDEX(Drop_downs!D3:D4,MATCH($E$9,Drop_downs!$A$3:$A$4,0)) -> 37.9 | I9: =INDEX(Drop_downs!E3:E4,MATCH($E$9,Drop_downs!$A$3:$A$4,0)) -> 40.9 | J9: =INDEX(Drop_downs!F3:F4,MATCH($E$9,Drop_downs!$A$3:$A$4,0)) -> 42.4 | K9: =INDEX(Drop_downs!G3:G4,MATCH($E$9,Drop_downs!$A$3:$A$4,0)) -> 36.6 | L9: =INDEX(Drop_downs!H3:H4,MATCH($E$9,Drop_downs!$A$3:$A$4,0)) -> 38.4 | M9: =INDEX(Drop_downs!I3:I4,MATCH($E$9,Drop_downs!$A$3:$A$4,0)) -> 40.3 | N9: =INDEX(Drop_downs!J3:J4,MATCH($E$9,Drop_downs!$A$3:$A$4,0)) -> 41.2 | O9: =INDEX(Drop_downs!K3:K4,MATCH($E$9,Drop_downs!$A$3:$A$4,0)) -> 42.8 | P9: =INDEX(Drop_downs!L3:L4,MATCH($E$9,Drop_downs!$A$3:$A$4,0)) -> 46.8 | Q9: =INDEX(Drop_downs!M3:M4,MATCH($E$9,Drop_downs!$A$3:$A$4,0)) -> 48.4 | R9: =INDEX(Drop_downs!N3:N4,MATCH($E$9,Drop_downs!$A$3:$A$4,0)) -> 47.3 | S9: =INDEX(Drop_downs!O3:O4,MATCH($E$9,Drop_downs!$A$3:$A$4,0)) -> 46.1 | T9: =INDEX(Drop_downs!P3:P4,MATCH($E$9,Drop_downs!$A$3:$A$4,0)) -> 40.5 | U9: =INDEX(Drop_downs!Q3:Q4,MATCH($E$9,Drop_downs!$A$3:$A$4,0)) -> 42.4 | V9: =INDEX(Drop_downs!R3:R4,MATCH($E$9,Drop_downs!$A$3:$A$4,0)) -> 45.1 | W9: =INDEX(Drop_downs!S3:S4,MATCH($E$9,Drop_downs!$A$3:$A$4,0)) -> 48 | X9: =INDEX(Drop_downs!T3:T4,MATCH($E$9,Drop_downs!$A$3:$A$4,0)) -> 52.3 | Y9: =INDEX(Drop_downs!U3:U4,MATCH($E$9,Drop_downs!$A$3:$A$4,0)) -> 55.5 | Z9: =INDEX(Drop_downs!V3:V4,MATCH($E$9,Drop_downs!$A$3:$A$4,0)) -> 58.1
A32: Blattschutz-Kennwort: "shb"
E103: Ergebnismatrix | F103: -42.21248123 | G103: -95.12812306 | H103: -102.5153052 | I103: -28.70873585 | J103: -27.19202236 | K103: 19.03970646 | L103: -15.04426117 | M103: -4.65884014 | N103: -13.1199984 | O103: -12.7081191 | P103: -25.18880762 | Q103: -28.35416811 | R103: -23.89969043 | S103: -29.53180981 | T103: -11.0501443 | U103: -11.40871163 | V103: -20.80386693 | W103: 6.778742016 | X103: -10.84198854 | Y103: -25.71276391 | Z103: -7.600867263
F104: 0.05610091259 | G104: -0.01795597376 | H104: -0.06392967747 | I104: 0.05524283482 | J104: 0.1149948048 | K104: 0.2013302121 | L104: 0.09097393302 | M104: 0.08064695221 | N104: 0.1057102951 | O104: 0.05523678967 | P104: 0.04339475578 | Q104: 0.05396952601 | R104: 0.001965309158 | S104: -0.09956756789 | T104: -0.02228332892 | U104: -0.09888152632 | V104: -0.07457597123 | W104: -0.05479067973 | X104: -0.088258236 | Y104: -0.0009643504448 | Z104: -0.001967538167
F105: 0.1646767345 | G105: 0.4331121367 | H105: 0.4568729556 | I105: 0.1377211887 | J105: 0.1370537258 | K105: -0.06026570556 | L105: 0.1124238598 | M105: 0.08201608692 | N105: 0.1107528929 | O105: 0.1100271366 | P105: 0.1683802483 | Q105: 0.1761938603 | R105: 0.1647062664 | S105: 0.1951559831 | T105: 0.1009061662 | U105: 0.1003399755 | V105: 0.1399159907 | W105: 0.01207837804 | X105: 0.09714503034 | Y105: 0.1574848887 | Z105: 0.07006950589
F106: -279.2477976 | G106: -818.8287145 | H106: -519.4321552 | I106: -592.7112074 | J106: -482.7220918 | K106: -439.3036827 | L106: -385.0764392 | M106: -244.5497011 | N106: -107.0093055 | O106: -11.13512525 | P106: -69.44696629 | Q106: -91.24303893 | R106: -137.3129352 | S106: -78.45481148 | T106: -188.7369671 | U106: -111.555726 | V106: -142.3209317 | W106: -146.7866944 | X106: -243.7814199 | Y106: -220.3999059 | Z106: -67.65812677
F107: 0 | G107: 0 | H107: 0 | I107: 0 | J107: 0 | K107: 0 | L107: 0 | M107: 0 | N107: 0 | O107: 0 | P107: 0 | Q107: 0 | R107: 0 | S107: 0 | T107: 0 | U107: 0 | V107: 0 | W107: 0 | X107: 0 | Y107: 0 | Z107: 0
E111: Beitrag Bias | F111: =F103 -> -42.21248123 | G111: =G103 -> -95.12812306 | H111: -102.5153052 | I111: -28.70873585 | J111: -27.19202236 | K111: 19.03970646 | L111: -15.04426117 | M111: -4.65884014 | N111: -13.1199984 | O111: -12.7081191 | P111: -25.18880762 | Q111: -28.35416811 | R111: -23.89969043 | S111: -29.53180981 | T111: -11.0501443 | U111: -11.40871163 | V111: -20.80386693 | W111: 6.778742016 | X111: -10.84198854 | Y111: -25.71276391 | Z111: -7.600867263
E112: Beitrag Flächenmasse | F112: =$B$3*F104 -> 1.122018252 | G112: =$B$3*G104 -> -0.3591194752 | H112: -1.278593549 | I112: 1.104856696 | J112: 2.299896096 | K112: 4.026604242 | L112: 1.81947866 | M112: 1.612939044 | N112: 2.114205903 | O112: 1.104735793 | P112: 0.8678951155 | Q112: 1.07939052 | R112: 0.03930618317 | S112: -1.991351358 | T112: -0.4456665785 | U112: -1.977630526 | V112: -1.491519425 | W112: -1.095813595 | X112: -1.76516472 | Y112: -0.0192870089 | Z112: -0.03935076334
E113: Beitrag Abstand | F113: =$C$3*F105 -> 37.87564895 | G113: =$C$3*G105 -> 99.61579144 | H113: 105.0807798 | I113: 31.6758734 | J113: 31.52235693 | K113: -13.86111228 | L113: 25.85748775 | M113: 18.86369999 | N113: 25.47316537 | O113: 25.30624142 | P113: 38.72745711 | Q113: 40.52458787 | R113: 37.88244127 | S113: 44.88587611 | T113: 23.20841823 | U113: 23.07819436 | V113: 32.18067786 | W113: 2.778026948 | X113: 22.34335698 | Y113: 36.22152441 | Z113: 16.11598636
E114: Beitrag Fugenanteil | F114: =$D$3*F106 -> -2.792477976 | G114: =$D$3*G106 -> -8.188287145 | H114: -5.194321552 | I114: -5.927112074 | J114: -4.827220918 | K114: -4.393036827 | L114: -3.850764392 | M114: -2.445497011 | N114: -1.070093055 | O114: -0.1113512525 | P114: -0.6944696629 | Q114: -0.9124303893 | R114: -1.373129352 | S114: -0.7845481148 | T114: -1.887369671 | U114: -1.11555726 | V114: -1.423209317 | W114: -1.467866944 | X114: -2.437814199 | Y114: -2.203999059 | Z114: -0.6765812677
E116: 95% Konfidenz-radius | F116: 4.742994714 | G116: 11.19711576 | H116: 7.780246098 | I116: 6.045185673 | J116: 7.513374964 | K116: 3.732463124 | L116: 3.485320381 | M116: 3.3938314 | N116: 3.535685805 | O116: 4.22332172 | P116: 3.292399877 | Q116: 3.83203654 | R116: 3.414377284 | S116: 3.665119729 | T116: 5.18398949 | U116: 7.634510891 | V116: 8.248070907 | W116: 7.964249385 | X116: 7.500028393 | Y116: 5.018036985 | Z116: 2.809309334
E118: Bezugskurvendelta | F118: =bk_offset(I3:X3) -> -6
E119: Bezugskurve | I119: 33 | J119: 36 | K119: 39 | L119: 42 | M119: 45 | N119: 48 | O119: 51 | P119: 52 | Q119: 53 | R119: 54 | S119: 55 | T119: 55 | U119: 55 | V119: 55 | W119: 55 | X119: 55
E120: verschobene Bezugskurve | I120: =I119+$F$118 -> 27 | J120: 30 | K120: 33 | L120: 36 | M120: 39 | N120: 42 | O120: 45 | P120: 46 | Q120: 47 | R120: 48 | S120: 49 | T120: 49 | U120: 49 | V120: 49 | W120: 49 | X120: 49
E121: Strichlierte Linie | I121: -10 | X121: -10

Sheet Varianten (hidden)
B1: 50 | C1: 63 | D1: 80 | E1: 100 | F1: 125 | G1: 160 | H1: 200 | I1: 250 | J1: 315 | K1: 400 | L1: 500 | M1: 630 | N1: 800 | O1: 1000 | P1: 1250 | Q1: 1600 | R1: 2000 | S1: 2500 | T1: 3150 | U1: 4000 | V1: 5000 | X1: EZW
A2: Verbesserungsmaß - Rechnung | B2: =B55+B57+B54+B56+B58 -> -2.979902163 | C2: 4.983209827 | D2: 4.823598665 | E2: 1.712619447 | F2: 4.732007886 | G2: 4.219436 | H2: 11.1686584 | I2: 14.93295753 | J2: 14.85104966 | K2: 14.99913534 | L2: 16.22914579 | M2: 14.98416928 | N2: 15.52163393 | O2: 16.23870885 | P2: 12.01645772 | Q2: 10.91046938 | R2: 11.3606647 | S2: 7.888577578 | T2: 9.928200413 | U2: 11.31376922 | V2: 9.063041721 | X2: =X4-einzahlwert($E$52:$T$52) -> 12
A3: Verbesserungsmaß - Messung | B3: =INDEX(Messungen!AH5:AH46,$A$42) -> -3.8 | C3: =INDEX(Messungen!AI5:AI46,$A$42) -> 2.2 | D3: =INDEX(Messungen!AJ5:AJ46,$A$42) -> 2.1 | E3: =INDEX(Messungen!AK5:AK46,$A$42) -> 1.7 | F3: =INDEX(Messungen!AL5:AL46,$A$42) -> 8.4 | G3: =INDEX(Messungen!AM5:AM46,$A$42) -> 7.3 | H3: =INDEX(Messungen!AN5:AN46,$A$42) -> 13.2 | I3: =INDEX(Messungen!AO5:AO46,$A$42) -> 13.7 | J3: =INDEX(Messungen!AP5:AP46,$A$42) -> 13.3 | K3: =INDEX(Messungen!AQ5:AQ46,$A$42) -> 13.5 | L3: =INDEX(Messungen!AR5:AR46,$A$42) -> 14.3 | M3: =INDEX(Messungen!AS5:AS46,$A$42) -> 13.5 | N3: =INDEX(Messungen!AT5:AT46,$A$42) -> 15.5 | O3: =INDEX(Messungen!AU5:AU46,$A$42) -> 17.1 | P3: =INDEX(Messungen!AV5:AV46,$A$42) -> 14.3 | Q3: =INDEX(Messungen!AW5:AW46,$A$42) -> 12.9 | R3: =INDEX(Messungen!AX5:AX46,$A$42) -> 13 | S3: =INDEX(Messungen!AY5:AY46,$A$42) -> 8.3 | T3: =INDEX(Messungen!AZ5:AZ46,$A$42) -> 10.4 | U3: =INDEX(Messungen!BA5:BA46,$A$42) -> 12.5 | V3: =INDEX(Messungen!BB5:BB46,$A$42) -> 9.3 | X3: =X5-einzahlwert($E$52:$T$52) -> 12
A4: Schalldämmmaß - Rechnung | B4: =B2+B52 -> 37.82009784 | C4: =C2+C52 -> 34.38320983 | D4: 32.52359867 | E4: 49.81261945 | F4: 46.43200789 | G4: 55.319436 | H4: 58.1686584 | I4: 67.43295753 | J4: 69.35104966 | K4: 73.49913534 | L4: 73.82914579 | M4: 75.98416928 | N4: 77.72163393 | O4: 79.83870885 | P4: 77.41645772 | Q4: 79.51046938 | R4: 79.4606647 | S4: 79.18857758 | T4: 80.12820041 | U4: 83.61376922 | V4: 82.26304172 | X4: =einzahlwert(E4:T4) -> 74
A5: Schalldämmmaß - Messung | B5: =B3+B52 -> 37 | C5: =C3+C52 -> 31.6 | D5: 29.8 | E5: 49.8 | F5: 50.1 | G5: 58.4 | H5: 60.2 | I5: 66.2 | J5: 67.8 | K5: 72 | L5: 71.9 | M5: 74.5 | N5: 77.7 | O5: 80.7 | P5: 79.7 | Q5: 81.5 | R5: 81.1 | S5: 79.6 | T5: 80.6 | U5: 84.8 | V5: 82.5 | X5: =einzahlwert(E5:T5) -> 74
A8: Variantennummer aus Dropdown auswählen
A9: 38490058
A30: Blattschutz-Kennwort: "shb"
A41: Parameter aus Zeile | B41: Flächenmasse | C41: Abstand | D41: Fugenanteil
A42: =MATCH(A9,Messungen!A5:A46,0) -> 4 | B42: =INDEX(Messungen!AC5:AC46,$A$42) -> 15 | C42: =INDEX(Messungen!AD5:AD46,$A$42) -> 245 | D42: =INDEX(Messungen!AE5:AE46,$A$42) -> 0.007
A45: Ergebnismatrix | B45: -42.21248123 | C45: -95.12812306 | D45: -102.5153052 | E45: -28.70873585 | F45: -27.19202236 | G45: 19.03970646 | H45: -15.04426117 | I45: -4.65884014 | J45: -13.1199984 | K45: -12.7081191 | L45: -25.18880762 | M45: -28.35416811 | N45: -23.89969043 | O45: -29.53180981 | P45: -11.0501443 | Q45: -11.40871163 | R45: -20.80386693 | S45: 6.778742016 | T45: -10.84198854 | U45: -25.71276391 | V45: -7.600867263
B46: 0.05610091259 | C46: -0.01795597376 | D46: -0.06392967747 | E46: 0.05524283482 | F46: 0.1149948048 | G46: 0.2013302121 | H46: 0.09097393302 | I46: 0.08064695221 | J46: 0.1057102951 | K46: 0.05523678967 | L46: 0.04339475578 | M46: 0.05396952601 | N46: 0.001965309158 | O46: -0.09956756789 | P46: -0.02228332892 | Q46: -0.09888152632 | R46: -0.07457597123 | S46: -0.05479067973 | T46: -0.088258236 | U46: -0.0009643504448 | V46: -0.001967538167
B47: 0.1646767345 | C47: 0.4331121367 | D47: 0.4568729556 | E47: 0.1377211887 | F47: 0.1370537258 | G47: -0.06026570556 | H47: 0.1124238598 | I47: 0.08201608692 | J47: 0.1107528929 | K47: 0.1100271366 | L47: 0.1683802483 | M47: 0.1761938603 | N47: 0.1647062664 | O47: 0.1951559831 | P47: 0.1009061662 | Q47: 0.1003399755 | R47: 0.1399159907 | S47: 0.01207837804 | T47: 0.09714503034 | U47: 0.1574848887 | V47: 0.07006950589
B48: -279.2477976 | C48: -818.8287145 | D48: -519.4321552 | E48: -592.7112074 | F48: -482.7220918 | G48: -439.3036827 | H48: -385.0764392 | I48: -244.5497011 | J48: -107.0093055 | K48: -11.13512525 | L48: -69.44696629 | M48: -91.24303893 | N48: -137.3129352 | O48: -78.45481148 | P48: -188.7369671 | Q48: -111.555726 | R48: -142.3209317 | S48: -146.7866944 | T48: -243.7814199 | U48: -220.3999059 | V48: -67.65812677
B49: 0 | C49: 0 | D49: 0 | E49: 0 | F49: 0 | G49: 0 | H49: 0 | I49: 0 | J49: 0 | K49: 0 | L49: 0 | M49: 0 | N49: 0 | O49: 0 | P49: 0 | Q49: 0 | R49: 0 | S49: 0 | T49: 0 | U49: 0 | V49: 0
A52: Schaldämmmaß - Grundbauteil | B52: =INDEX(Messungen!F5:F46,$A$42) -> 40.8 | C52: =INDEX(Messungen!G5:G46,$A$42) -> 29.4 | D52: =INDEX(Messungen!H5:H46,$A$42) -> 27.7 | E52: =INDEX(Messungen!I5:I46,$A$42) -> 48.1 | F52: =INDEX(Messungen!J5:J46,$A$42) -> 41.7 | G52: =INDEX(Messungen!K5:K46,$A$42) -> 51.1 | H52: =INDEX(Messungen!L5:L46,$A$42) -> 47 | I52: =INDEX(Messungen!M5:M46,$A$42) -> 52.5 | J52: =INDEX(Messungen!N5:N46,$A$42) -> 54.5 | K52: =INDEX(Messungen!O5:O46,$A$42) -> 58.5 | L52: =INDEX(Messungen!P5:P46,$A$42) -> 57.6 | M52: =INDEX(Messungen!Q5:Q46,$A$42) -> 61 | N52: =INDEX(Messungen!R5:R46,$A$42) -> 62.2 | O52: =INDEX(Messungen!S5:S46,$A$42) -> 63.6 | P52: =INDEX(Messungen!T5:T46,$A$42) -> 65.4 | Q52: =INDEX(Messungen!U5:U46,$A$42) -> 68.6 | R52: =INDEX(Messungen!V5:V46,$A$42) -> 68.1 | S52: =INDEX(Messungen!W5:W46,$A$42) -> 71.3 | T52: =INDEX(Messungen!X5:X46,$A$42) -> 70.2 | U52: =INDEX(Messungen!Y5:Y46,$A$42) -> 72.3 | V52: =INDEX(Messungen!Z5:Z46,$A$42) -> 73.2
A54: Beitrag Bias | B54: =B45 -> -42.21248123 | C54: -95.12812306 | D54: -102.5153052 | E54: -28.70873585 | F54: -27.19202236 | G54: 19.03970646 | H54: -15.04426117 | I54: -4.65884014 | J54: -13.1199984 | K54: -12.7081191 | L54: -25.18880762 | M54: -28.35416811 | N54: -23.89969043 | O54: -29.53180981 | P54: -11.0501443 | Q54: -11.40871163 | R54: -20.80386693 | S54: 6.778742016 | T54: -10.84198854 | U54: -25.71276391 | V54: -7.600867263
A55: Beitrag Flächenmasse | B55: =$B$42*B46 -> 0.8415136889 | C55: =$B$42*C46 -> -0.2693396064 | D55: -0.958945162 | E55: 0.8286425223 | F55: 1.724922072 | G55: 3.019953181 | H55: 1.364608995 | I55: 1.209704283 | J55: 1.585654427 | K55: 0.8285518451 | L55: 0.6509213366 | M55: 0.8095428902 | N55: 0.02947963737 | O55: -1.493513518 | P55: -0.3342499339 | Q55: -1.483222895 | R55: -1.118639569 | S55: -0.8218601959 | T55: -1.32387354 | U55: -0.01446525667 | V55: -0.02951307251
A56: Beitrag Abstand | B56: =$C$42*B47 -> 40.34579996 | C56: =$C$42*C47 -> 106.1124735 | D56: 111.9338741 | E56: 33.74169123 | F56: 33.57816282 | G56: -14.76509786 | H56: 27.54384565 | I56: 20.0939413 | J56: 27.13445877 | K56: 26.95664847 | L56: 41.25316084 | M56: 43.16749577 | N56: 40.35303526 | O56: 47.81321586 | P56: 24.72201073 | Q56: 24.58329399 | R56: 34.27941772 | S56: 2.959202619 | T56: 23.80053243 | U56: 38.58379774 | V56: 17.16702894
A57: Beitrag Fugenanteil | B57: =$D$42*B48 -> -1.954734583 | C57: =$D$42*C48 -> -5.731801002 | D57: -3.636025086 | E57: -4.148978452 | F57: -3.379054642 | G57: -3.075125779 | H57: -2.695535074 | I57: -1.711847908 | J57: -0.7490651386 | K57: -0.07794587672 | L57: -0.486128764 | M57: -0.6387012725 | N57: -0.9611905467 | O57: -0.5491836803 | P57: -1.321158769 | Q57: -0.7808900821 | R57: -0.9962465219 | S57: -1.02750686 | T57: -1.706469939 | U57: -1.542799342 | V57: -0.4736068874
A60: 95% Konfidenz | B60: 4.559447296 | C60: 9.345979785 | D60: 7.139597408 | E60: 5.10789178 | F60: 6.507363544 | G60: 3.468849612 | H60: 3.581955582 | I60: 3.114944347 | J60: 2.932476201 | K60: 3.469148505 | L60: 2.83836844 | M60: 3.156773761 | N60: 3.085693387 | O60: 3.525974119 | P60: 4.261954094 | Q60: 5.683207622 | R60: 5.282582548 | S60: 5.953656351 | T60: 5.898161401 | U60: 4.1749987 | V60: 2.436658342 | X60: 2.679302092

Sheet Drop_downs (hidden)
B1: 50 | C1: 63 | D1: 80 | E1: 100 | F1: 125 | G1: 160 | H1: 200 | I1: 250 | J1: 315 | K1: 400 | L1: 500 | M1: 630 | N1: 800 | O1: 1000 | P1: 1250 | Q1: 1600 | R1: 2000 | S1: 2500 | T1: 3150 | U1: 4000 | V1: 5000
A2: Grundwand auswählen
A3: SHB Beton | B3: 45.9 | C3: 37.6 | D3: 39 | E3: 50.2 | F3: 47.1 | G3: 49.7 | H3: 48.4 | I3: 52.2 | J3: 54.8 | K3: 58.4 | L3: 58.7 | M3: 62.8 | N3: 62.6 | O3: 64.8 | P3: 66.2 | Q3: 69.2 | R3: 70.2 | S3: 71.2 | T3: 73.5 | U3: 77 | V3: 79.1
A4: SHB Ziegel | B4: 29.71803882 | C4: 28.2 | D4: 37.9 | E4: 40.9 | F4: 42.4 | G4: 36.6 | H4: 38.4 | I4: 40.3 | J4: 41.2 | K4: 42.8 | L4: 46.8 | M4: 48.4 | N4: 47.3 | O4: 46.1 | P4: 40.5 | Q4: 42.4 | R4: 45.1 | S4: 48 | T4: 52.3 | U4: 55.5 | V4: 58.1

Sheet Messungen (hidden)
F2: Schalldämmmaß_Grundbauteil | AH2: Lösungsvektor y: Verbesserungsmaß | BC2: Vorhersage_Verbesserungsmaß
F3: dB | AC3: Flächenmasse | AD3: Abstand | AE3: Fugenanteil | AH3: dB
A4: Variantennummer | B4: Zeile | C4: Grundbauteilnummer | D4: Zeile | F4: 50 | G4: 63 | H4: 80 | I4: 100 | J4: 125 | K4: 160 | L4: 200 | M4: 250 | N4: 315 | O4: 400 | P4: 500 | Q4: 630 | R4: 800 | S4: 1000 | T4: 1250 | U4: 1600 | V4: 2000 | W4: 2500 | X4: 3150 | Y4: 4000 | Z4: 5000 | AA4: EZW_Grundbauteil | AB4: EZW_Konstruktion | AC4: kg/m2 | AD4: m | AE4: 1 | AH4: 50 | AI4: 63 | AJ4: 80 | AK4: 100 | AL4: 125 | AM4: 160 | AN4: 200 | AO4: 250 | AP4: 315 | AQ4: 400 | AR4: 500 | AS4: 630 | AT4: 800 | AU4: 1000 | AV4: 1250 | AW4: 1600 | AX4: 2000 | AY4: 2500 | AZ4: 3150 | BA4: 4000 | BB4: 5000 | BC4: EZW
A5: 38490055 | B5: 5 | C5: 38490053 | D5: 3 | F5: 40.8 | G5: 29.4 | H5: 27.7 | I5: 48.1 | J5: 41.7 | K5: 51.1 | L5: 47 | M5: 52.5 | N5: 54.5 | O5: 58.5 | P5: 57.6 | Q5: 61 | R5: 62.2 | S5: 63.6 | T5: 65.4 | U5: 68.6 | V5: 68.1 | W5: 71.3 | X5: 70.2 | Y5: 72.3 | Z5: 73.2 | AA5: 62 | AB5: 73 | AC5: 15 | AD5: 245 | AE5: 0.007 | AH5: -0.7 | AI5: 4.1 | AJ5: 6.2 | AK5: 1.4 | AL5: 5.9 | AM5: 3 | AN5: 8.8 | AO5: 15.7 | AP5: 13.9 | AQ5: 15.6 | AR5: 16.3 | AS5: 15.3 | AT5: 16.2 | AU5: 17.1 | AV5: 13.3 | AW5: 10.6 | AX5: 10.8 | AY5: 7.2 | AZ5: 9.3 | BA5: 12.2 | BB5: 10.1 | BC5: 11
A6: 38490056 | B6: 6 | C6: 38490053 | D6: 3 | F6: 40.8 | G6: 29.4 | H6: 27.7 | I6: 48.1 | J6: 41.7 | K6: 51.1 | L6: 47 | M6: 52.5 | N6: 54.5 | O6: 58.5 | P6: 57.6 | Q6: 61 | R6: 62.2 | S6: 63.6 | T6: 65.4 | U6: 68.6 | V6: 68.1 | W6: 71.3 | X6: 70.2 | Y6: 72.3 | Z6: 73.2 | AA6: 62 | AB6: 76 | AC6: 15 | AD6: 245 | AE6: 0 | AH6: 3.8 | AI6: 15.5 | AJ6: 9 | AK6: 4.1 | AL6: 5.9 | AM6: 7.5 | AN6: 16.7 | AO6: 19.6 | AP6: 18.8 | AQ6: 18.1 | AR6: 18.5 | AS6: 16.9 | AT6: 17.9 | AU6: 19 | AV6: 15.7 | AW6: 14.1 | AX6: 12.8 | AY6: 7.4 | AZ6: 9.4 | BA6: 13.4 | BB6: 10.3 | BC6: 14
A7: 38490057 | B7: 7 | C7: 38490053 | D7: 3 | F7: 40.8 | G7: 29.4 | H7: 27.7 | I7: 48.1 | J7: 41.7 | K7: 51.1 | L7: 47 | M7: 52.5 | N7: 54.5 | O7: 58.5 | P7: 57.6 | Q7: 61 | R7: 62.2 | S7: 63.6 | T7: 65.4 | U7: 68.6 | V7: 68.1 | W7: 71.3 | X7: 70.2 | Y7: 72.3 | Z7: 73.2 | AA7: 62 | AB7: 75 | AC7: 15 | AD7: 245 | AE7: 0 | AH7: -2.5 | AI7: 5.7 | AJ7: 7.5 | AK7: 4.4 | AL7: 8.9 | AM7: 5.7 | AN7: 12 | AO7: 15.5 | AP7: 14.2 | AQ7: 15 | AR7: 16.3 | AS7: 15 | AT7: 16.4 | AU7: 17.8 | AV7: 14.9 | AW7: 12.7 | AX7: 11.2 | AY7: 6.6 | AZ7: 9.3 | BA7: 12.4 | BB7: 9.8 | BC7: 13
A8: 38490058 | B8: 8 | C8: 38490053 | D8: 3 | F8: 40.8 | G8: 29.4 | H8: 27.7 | I8: 48.1 | J8: 41.7 | K8: 51.1 | L8: 47 | M8: 52.5 | N8: 54.5 | O8: 58.5 | P8: 57.6 | Q8: 61 | R8: 62.2 | S8: 63.6 | T8: 65.4 | U8: 68.6 | V8: 68.1 | W8: 71.3 | X8: 70.2 | Y8: 72.3 | Z8: 73.2 | AA8: 62 | AB8: 74 | AC8: 15 | AD8: 245 | AE8: 0.007 | AH8: -3.8 | AI8: 2.2 | AJ8: 2.1 | AK8: 1.7 | AL8: 8.4 | AM8: 7.3 | AN8: 13.2 | AO8: 13.7 | AP8: 13.3 | AQ8: 13.5 | AR8: 14.3 | AS8: 13.5 | AT8: 15.5 | AU8: 17.1 | AV8: 14.3 | AW8: 12.9 | AX8: 13 | AY8: 8.3 | AZ8: 10.4 | BA8: 12.5 | BB8: 9.3 | BC8: 12
A9: 38490059 | B9: 9 | C9: 38490053 | D9: 3 | F9: 40.8 | G9: 29.4 | H9: 27.7 | I9: 48.1 | J9: 41.7 | K9: 51.1 | L9: 47 | M9: 52.5 | N9: 54.5 | O9: 58.5 | P9: 57.6 | Q9: 61 | R9: 62.2 | S9: 63.6 | T9: 65.4 | U9: 68.6 | V9: 68.1 | W9: 71.3 | X9: 70.2 | Y9: 72.3 | Z9: 73.2 | AA9: 62 | AB9: 76 | AC9: 15 | AD9: 245 | AE9: 0 | AH9: -0.6 | AI9: 14.4 | AJ9: 8.5 | AK9: 0.6 | AL9: 1 | AM9: 10.6 | AN9: 18.6 | AO9: 20.7 | AP9: 18.6 | AQ9: 18.2 | AR9: 19.6 | AS9: 17.9 | AT9: 17.8 | AU9: 18.8 | AV9: 17.7 | AW9: 15.3 | AX9: 14.6 | AY9: 8.8 | AZ9: 10.5 | BA9: 13.4 | BB9: 9.3 | BC9: 14
A10: 38490060 | B10: 10 | C10: 38490053 | D10: 3 | F10: 40.8 | G10: 29.4 | H10: 27.7 | I10: 48.1 | J10: 41.7 | K10: 51.1 | L10: 47 | M10: 52.5 | N10: 54.5 | O10: 58.5 | P10: 57.6 | Q10: 61 | R10: 62.2 | S10: 63.6 | T10: 65.4 | U10: 68.6 | V10: 68.1 | W10: 71.3 | X10: 70.2 | Y10: 72.3 | Z10: 73.2 | AA10: 62 | AB10: 74 | AC10: 15 | AD10: 245 | AE10: 0.007 | AH10: -1.7 | AI10: 4.4 | AJ10: 7.1 | AK10: 2.5 | AL10: 7.9 | AM10: 5.2 | AN10: 11.2 | AO10: 14.6 | AP10: 13.2 | AQ10: 14.2 | AR10: 15.5 | AS10: 14.9 | AT10: 15.2 | AU10: 17.1 | AV10: 14.3 | AW10: 12.3 | AX10: 12.8 | AY10: 8 | AZ10: 9.7 | BA10: 12.6 | BB10: 10.1 | BC10: 12
A11: 38490061 | B11: 11 | C11: 38490053 | D11: 3 | F11: 40.8 | G11: 29.4 | H11: 27.7 | I11: 48.1 | J11: 41.7 | K11: 51.1 | L11: 47 | M11: 52.5 | N11: 54.5 | O11: 58.5 | P11: 57.6 | Q11: 61 | R11: 62.2 | S11: 63.6 | T11: 65.4 | U11: 68.6 | V11: 68.1 | W11: 71.3 | X11: 70.2 | Y11: 72.3 | Z11: 73.2 | AA11: 62 | AB11: 76 | AC11: 15 | AD11: 245 | AE11: 0 | AH11: -3.5 | AI11: 12.2 | AJ11: 10 | AK11: 4.2 | AL11: 7.7 | AM11: 4.8 | AN11: 13.6 | AO11: 18.3 | AP11: 18.1 | AQ11: 16.2 | AR11: 17.9 | AS11: 16.1 | AT11: 16.9 | AU11: 17.8 | AV11: 14.9 | AW11: 13.2 | AX11: 14.4 | AY11: 8.7 | AZ11: 10.4 | BA11: 13.2 | BB11: 9.9 | BC11: 14
A12: 38490062 | B12: 12 | C12: 38490053 | D12: 3 | F12: 40.8 | G12: 29.4 | H12: 27.7 | I12: 48.1 | J12: 41.7 | K12: 51.1 | L12: 47 | M12: 52.5 | N12: 54.5 | O12: 58.5 | P12: 57.6 | Q12: 61 | R12: 62.2 | S12: 63.6 | T12: 65.4 | U12: 68.6 | V12: 68.1 | W12: 71.3 | X12: 70.2 | Y12: 72.3 | Z12: 73.2 | AA12: 62 | AB12: 77 | AC12: 15 | AD12: 245 | AE12: 0 | AH12: 0.6 | AI12: 15.4 | AJ12: 10 | AK12: 6.9 | AL12: 11 | AM12: 7.4 | AN12: 16.6 | AO12: 19.6 | AP12: 18 | AQ12: 16.9 | AR12: 18.1 | AS12: 16.4 | AT12: 17.8 | AU12: 18.6 | AV12: 15.5 | AW12: 14.3 | AX12: 14.2 | AY12: 8.5 | AZ12: 10.1 | BA12: 13.1 | BB12: 9.8 | BC12: 15
A13: 38490063 | B13: 13 | C13: 38490053 | D13: 3 | F13: 40.8 | G13: 29.4 | H13: 27.7 | I13: 48.1 | J13: 41.7 | K13: 51.1 | L13: 47 | M13: 52.5 | N13: 54.5 | O13: 58.5 | P13: 57.6 | Q13: 61 | R13: 62.2 | S13: 63.6 | T13: 65.4 | U13: 68.6 | V13: 68.1 | W13: 71.3 | X13: 70.2 | Y13: 72.3 | Z13: 73.2 | AA13: 62 | AB13: 75 | AC13: 15 | AD13: 245 | AE13: 0 | AH13: -0.8 | AI13: 9.2 | AJ13: 6.4 | AK13: 4.7 | AL13: 10.1 | AM13: 6.2 | AN13: 12.6 | AO13: 15.2 | AP13: 14.1 | AQ13: 14.1 | AR13: 16 | AS13: 15.9 | AT13: 15.9 | AU13: 18 | AV13: 14.5 | AW13: 12.9 | AX13: 12.6 | AY13: 7.7 | AZ13: 9.5 | BA13: 12.4 | BB13: 9.3 | BC13: 13
A14: 38490064 | B14: 14 | C14: 38490053 | D14: 3 | F14: 40.8 | G14: 29.4 | H14: 27.7 | I14: 48.1 | J14: 41.7 | K14: 51.1 | L14: 47 | M14: 52.5 | N14: 54.5 | O14: 58.5 | P14: 57.6 | Q14: 61 | R14: 62.2 | S14: 63.6 | T14: 65.4 | U14: 68.6 | V14: 68.1 | W14: 71.3 | X14: 70.2 | Y14: 72.3 | Z14: 73.2 | AA14: 62 | AB14: 73 | AC14: 7.5 | AD14: 245 | AE14: 0.007 | AH14: -1.4 | AI14: 5.4 | AJ14: 7.2 | AK14: 4 | AL14: 6 | AM14: 4.5 | AN14: 9.5 | AO14: 12.8 | AP14: 12.7 | AQ14: 13.1 | AR14: 15.1 | AS14: 14.9 | AT14: 15.4 | AU14: 15.7 | AV14: 9 | AW14: 10 | AX14: 11 | AY14: 9.7 | AZ14: 13.8 | BA14: 12.1 | BB14: 9.3 | BC14: 11
A15: 38490065 | B15: 15 | C15: 38490053 | D15: 3 | F15: 40.8 | G15: 29.4 | H15: 27.7 | I15: 48.1 | J15: 41.7 | K15: 51.1 | L15: 47 | M15: 52.5 | N15: 54.5 | O15: 58.5 | P15: 57.6 | Q15: 61 | R15: 62.2 | S15: 63.6 | T15: 65.4 | U15: 68.6 | V15: 68.1 | W15: 71.3 | X15: 70.2 | Y15: 72.3 | Z15: 73.2 | AA15: 62 | AB15: 74 | AC15: 7.5 | AD15: 245 | AE15: 0.007 | AH15: -3.9 | AI15: 11.4 | AJ15: 11.9 | AK15: 7.3 | AL15: 5.3 | AM15: 2.8 | AN15: 12.1 | AO15: 14.5 | AP15: 14.8 | AQ15: 14.6 | AR15: 16.9 | AS15: 15.9 | AT15: 16.6 | AU15: 15.9 | AV15: 9.4 | AW15: 10.3 | AX15: 11.8 | AY15: 10.4 | AZ15: 14.5 | BA15: 12.5 | BB15: 9 | BC15: 12
A16: 38490066 | B16: 16 | C16: 38490053 | D16: 3 | F16: 40.8 | G16: 29.4 | H16: 27.7 | I16: 48.1 | J16: 41.7 | K16: 51.1 | L16: 47 | M16: 52.5 | N16: 54.5 | O16: 58.5 | P16: 57.6 | Q16: 61 | R16: 62.2 | S16: 63.6 | T16: 65.4 | U16: 68.6 | V16: 68.1 | W16: 71.3 | X16: 70.2 | Y16: 72.3 | Z16: 73.2 | AA16: 62 | AB16: 75 | AC16: 7.5 | AD16: 245 | AE16: 0 | AH16: -3.8 | AI16: 13.5 | AJ16: 10.7 | AK16: 8.3 | AL16: 7.3 | AM16: 4.7 | AN16: 12.8 | AO16: 15.6 | AP16: 14.9 | AQ16: 15.8 | AR16: 17.7 | AS16: 15.3 | AT16: 16.2 | AU16: 16.3 | AV16: 10.8 | AW16: 10.8 | AX16: 11.3 | AY16: 10.1 | AZ16: 14.2 | BA16: 12.5 | BB16: 8.9 | BC16: 13
A17: 38490067 | B17: 17 | C17: 38490053 | D17: 3 | F17: 40.8 | G17: 29.4 | H17: 27.7 | I17: 48.1 | J17: 41.7 | K17: 51.1 | L17: 47 | M17: 52.5 | N17: 54.5 | O17: 58.5 | P17: 57.6 | Q17: 61 | R17: 62.2 | S17: 63.6 | T17: 65.4 | U17: 68.6 | V17: 68.1 | W17: 71.3 | X17: 70.2 | Y17: 72.3 | Z17: 73.2 | AA17: 62 | AB17: 73 | AC17: 7.5 | AD17: 245 | AE17: 0 | AH17: -1.8 | AI17: 7.4 | AJ17: 6.1 | AK17: 4.7 | AL17: 6.2 | AM17: 4.3 | AN17: 10.6 | AO17: 13.5 | AP17: 13.4 | AQ17: 12.8 | AR17: 15.3 | AS17: 14.6 | AT17: 15.6 | AU17: 16 | AV17: 10 | AW17: 10.1 | AX17: 10.7 | AY17: 9.3 | AZ17: 13.6 | BA17: 12 | BB17: 8.6 | BC17: 11
A18: 38490068 | B18: 18 | C18: 38490053 | D18: 3 | F18: 40.8 | G18: 29.4 | H18: 27.7 | I18: 48.1 | J18: 41.7 | K18: 51.1 | L18: 47 | M18: 52.5 | N18: 54.5 | O18: 58.5 | P18: 57.6 | Q18: 61 | R18: 62.2 | S18: 63.6 | T18: 65.4 | U18: 68.6 | V18: 68.1 | W18: 71.3 | X18: 70.2 | Y18: 72.3 | Z18: 73.2 | AA18: 62 | AB18: 72 | AC18: 48 | AD18: 245 | AE18: 0.007 | AH18: -3.1 | AI18: 3.5 | AJ18: 4.7 | AK18: 2.3 | AL18: 6.1 | AM18: 5.5 | AN18: 11.7 | AO18: 15.8 | AP18: 18 | AQ18: 15.6 | AR18: 16.5 | AS18: 16.4 | AT18: 13.3 | AU18: 10.9 | AV18: 7.8 | AW18: 4.6 | AX18: 7 | AY18: 3.1 | AZ18: 6.4 | BA18: 9.3 | BB18: 9.4 | BC18: 10
A19: 38490069 | B19: 19 | C19: 38490053 | D19: 3 | F19: 40.8 | G19: 29.4 | H19: 27.7 | I19: 48.1 | J19: 41.7 | K19: 51.1 | L19: 47 | M19: 52.5 | N19: 54.5 | O19: 58.5 | P19: 57.6 | Q19: 61 | R19: 62.2 | S19: 63.6 | T19: 65.4 | U19: 68.6 | V19: 68.1 | W19: 71.3 | X19: 70.2 | Y19: 72.3 | Z19: 73.2 | AA19: 62 | AB19: 73 | AC19: 48 | AD19: 245 | AE19: 0.007 | AH19: -3.4 | AI19: 5.2 | AJ19: 3.4 | AK19: 2.7 | AL19: 6.5 | AM19: 7.8 | AN19: 14.1 | AO19: 18.5 | AP19: 21 | AQ19: 16 | AR19: 18.1 | AS19: 17 | AT19: 14 | AU19: 11.8 | AV19: 8.3 | AW19: 4.8 | AX19: 7.5 | AY19: 4.1 | AZ19: 7.2 | BA19: 10 | BB19: 9.5 | BC19: 11
A20: 38490070 | B20: 20 | C20: 38490053 | D20: 3 | F20: 40.8 | G20: 29.4 | H20: 27.7 | I20: 48.1 | J20: 41.7 | K20: 51.1 | L20: 47 | M20: 52.5 | N20: 54.5 | O20: 58.5 | P20: 57.6 | Q20: 61 | R20: 62.2 | S20: 63.6 | T20: 65.4 | U20: 68.6 | V20: 68.1 | W20: 71.3 | X20: 70.2 | Y20: 72.3 | Z20: 73.2 | AA20: 62 | AB20: 77 | AC20: 48 | AD20: 245 | AE20: 0 | AH20: 4.4 | AI20: 14.6 | AJ20: 11.5 | AK20: 11.1 | AL20: 14.1 | AM20: 15.2 | AN20: 18.5 | AO20: 19.1 | AP20: 20.1 | AQ20: 16.1 | AR20: 17.2 | AS20: 18 | AT20: 19 | AU20: 13 | AV20: 12 | AW20: 6.9 | AX20: 11 | AY20: 8.6 | AZ20: 12.4 | BA20: 15.1 | BB20: 10.6 | BC20: 15
A21: 38490071 | B21: 21 | C21: 38490053 | D21: 3 | F21: 40.8 | G21: 29.4 | H21: 27.7 | I21: 48.1 | J21: 41.7 | K21: 51.1 | L21: 47 | M21: 52.5 | N21: 54.5 | O21: 58.5 | P21: 57.6 | Q21: 61 | R21: 62.2 | S21: 63.6 | T21: 65.4 | U21: 68.6 | V21: 68.1 | W21: 71.3 | X21: 70.2 | Y21: 72.3 | Z21: 73.2 | AA21: 62 | AB21: 75 | AC21: 48 | AD21: 245 | AE21: 0 | AH21: -1.1 | AI21: 10.2 | AJ21: 7.8 | AK21: 6.9 | AL21: 11.4 | AM21: 11.9 | AN21: 16.2 | AO21: 17.1 | AP21: 17.2 | AQ21: 15.4 | AR21: 16.4 | AS21: 16.5 | AT21: 15.8 | AU21: 12 | AV21: 10.5 | AW21: 6.3 | AX21: 9.3 | AY21: 5.9 | AZ21: 10 | BA21: 12.9 | BB21: 9.4 | BC21: 13
A22: 38490031 | B22: 24 | C22: 38490029 | D22: 23 | F22: 45.9 | G22: 37.6 | H22: 39 | I22: 50.2 | J22: 47.1 | K22: 49.7 | L22: 48.4 | M22: 52.2 | N22: 54.8 | O22: 58.4 | P22: 58.7 | Q22: 62.8 | R22: 62.6 | S22: 64.8 | T22: 66.2 | U22: 69.2 | V22: 70.2 | W22: 71.2 | X22: 73.5 | Y22: 77 | Z22: 79.1 | AA22: 63 | AB22: 70 | AC22: 3.4 | AD22: 215 | AE22: 0 | AH22: -9.6 | AI22: -13.1 | AJ22: -9.6 | AK22: -4.5 | AL22: 3.1 | AM22: 3 | AN22: 8.6 | AO22: 12 | AP22: 11 | AQ22: 11.5 | AR22: 10 | AS22: 5.6 | AT22: 7.4 | AU22: 7.5 | AV22: 8.6 | AW22: 6.2 | AX22: 5.8 | AY22: 5.8 | AZ22: 5.2 | BA22: 4.2 | BB22: 5.4 | BC22: 7
A23: 38490032 | B23: 25 | C23: 38490029 | D23: 23 | F23: 45.9 | G23: 37.6 | H23: 39 | I23: 50.2 | J23: 47.1 | K23: 49.7 | L23: 48.4 | M23: 52.2 | N23: 54.8 | O23: 58.4 | P23: 58.7 | Q23: 62.8 | R23: 62.6 | S23: 64.8 | T23: 66.2 | U23: 69.2 | V23: 70.2 | W23: 71.2 | X23: 73.5 | Y23: 77 | Z23: 79.1 | AA23: 63 | AB23: 71 | AC23: 3.4 | AD23: 215 | AE23: 0 | AH23: -8.4 | AI23: -11.9 | AJ23: -7.1 | AK23: -3.5 | AL23: 2.1 | AM23: 5.1 | AN23: 8.7 | AO23: 12.6 | AP23: 10.7 | AQ23: 12.1 | AR23: 10.3 | AS23: 6.9 | AT23: 8.5 | AU23: 9.2 | AV23: 9.3 | AW23: 7.3 | AX23: 7.3 | AY23: 7.1 | AZ23: 7.4 | BA23: 7.2 | BB23: 6.3 | BC23: 8
A24: 38490033 | B24: 26 | C24: 38490029 | D24: 23 | F24: 45.9 | G24: 37.6 | H24: 39 | I24: 50.2 | J24: 47.1 | K24: 49.7 | L24: 48.4 | M24: 52.2 | N24: 54.8 | O24: 58.4 | P24: 58.7 | Q24: 62.8 | R24: 62.6 | S24: 64.8 | T24: 66.2 | U24: 69.2 | V24: 70.2 | W24: 71.2 | X24: 73.5 | Y24: 77 | Z24: 79.1 | AA24: 63 | AB24: 69 | AC24: 5.8 | AD24: 215 | AE24: 0 | AH24: -7 | AI24: -9.2 | AJ24: -11.6 | AK24: -3.6 | AL24: 3.9 | AM24: 8.9 | AN24: 7.5 | AO24: 11.8 | AP24: 9.9 | AQ24: 7.7 | AR24: 8.4 | AS24: 7 | AT24: 9.3 | AU24: 8.9 | AV24: 5.1 | AW24: 1 | AX24: -0.5 | AY24: -0.6 | AZ24: 0.1 | BA24: 0.3 | BB24: 3.5 | BC24: 6
A25: 38490034 | B25: 27 | C25: 38490029 | D25: 23 | F25: 45.9 | G25: 37.6 | H25: 39 | I25: 50.2 | J25: 47.1 | K25: 49.7 | L25: 48.4 | M25: 52.2 | N25: 54.8 | O25: 58.4 | P25: 58.7 | Q25: 62.8 | R25: 62.6 | S25: 64.8 | T25: 66.2 | U25: 69.2 | V25: 70.2 | W25: 71.2 | X25: 73.5 | Y25: 77 | Z25: 79.1 | AA25: 63 | AB25: 70 | AC25: 5.8 | AD25: 215 | AE25: 0 | AH25: -7.4 | AI25: -9.7 | AJ25: -12.4 | AK25: -1.3 | AL25: 3.6 | AM25: 7.8 | AN25: 7 | AO25: 11.4 | AP25: 9.1 | AQ25: 7 | AR25: 8.1 | AS25: 6.6 | AT25: 8.9 | AU25: 8.7 | AV25: 5.4 | AW25: 1.8 | AX25: 0.6 | AY25: 1.1 | AZ25: 1.8 | BA25: 3.4 | BB25: 4.8 | BC25: 7
A26: 38490035 | B26: 28 | C26: 38490029 | D26: 23 | F26: 45.9 | G26: 37.6 | H26: 39 | I26: 50.2 | J26: 47.1 | K26: 49.7 | L26: 48.4 | M26: 52.2 | N26: 54.8 | O26: 58.4 | P26: 58.7 | Q26: 62.8 | R26: 62.6 | S26: 64.8 | T26: 66.2 | U26: 69.2 | V26: 70.2 | W26: 71.2 | X26: 73.5 | Y26: 77 | Z26: 79.1 | AA26: 63 | AB26: 72 | AC26: 7.5 | AD26: 215 | AE26: 0.006 | AH26: -7.2 | AI26: -8 | AJ26: -9.9 | AK26: -2.5 | AL26: -1.1 | AM26: 5.4 | AN26: 7.7 | AO26: 14.1 | AP26: 11.8 | AQ26: 12.4 | AR26: 12.3 | AS26: 10.8 | AT26: 12.4 | AU26: 12 | AV26: 10.7 | AW26: 9.9 | AX26: 10.6 | AY26: 12.4 | AZ26: 11.6 | BA26: 8.6 | BB26: 8 | BC26: 9
A27: 38490036 | B27: 29 | C27: 38490029 | D27: 23 | F27: 45.9 | G27: 37.6 | H27: 39 | I27: 50.2 | J27: 47.1 | K27: 49.7 | L27: 48.4 | M27: 52.2 | N27: 54.8 | O27: 58.4 | P27: 58.7 | Q27: 62.8 | R27: 62.6 | S27: 64.8 | T27: 66.2 | U27: 69.2 | V27: 70.2 | W27: 71.2 | X27: 73.5 | Y27: 77 | Z27: 79.1 | AA27: 63 | AB27: 74 | AC27: 7.5 | AD27: 215 | AE27: 0 | AH27: -7.7 | AI27: 2.7 | AJ27: -1.3 | AK27: 0.9 | AL27: 1.5 | AM27: 8.5 | AN27: 9.9 | AO27: 15.3 | AP27: 13.2 | AQ27: 12.5 | AR27: 12.3 | AS27: 10.8 | AT27: 13 | AU27: 13 | AV27: 12 | AW27: 11.8 | AX27: 12.3 | AY27: 13.2 | AZ27: 12.5 | BA27: 9.1 | BB27: 8.3 | BC27: 11
A28: 38490037 | B28: 30 | C28: 38490029 | D28: 23 | F28: 45.9 | G28: 37.6 | H28: 39 | I28: 50.2 | J28: 47.1 | K28: 49.7 | L28: 48.4 | M28: 52.2 | N28: 54.8 | O28: 58.4 | P28: 58.7 | Q28: 62.8 | R28: 62.6 | S28: 64.8 | T28: 66.2 | U28: 69.2 | V28: 70.2 | W28: 71.2 | X28: 73.5 | Y28: 77 | Z28: 79.1 | AA28: 63 | AB28: 73 | AC28: 7.5 | AD28: 215 | AE28: 0 | AH28: -4.7 | AI28: -1.1 | AJ28: -4.3 | AK28: 2.2 | AL28: -0.1 | AM28: 8.1 | AN28: 10.9 | AO28: 14.9 | AP28: 11.9 | AQ28: 12.7 | AR28: 12.1 | AS28: 10.9 | AT28: 11.9 | AU28: 11.1 | AV28: 11.2 | AW28: 11 | AX28: 10.8 | AY28: 12.4 | AZ28: 11.9 | BA28: 8.8 | BB28: 8.2 | BC28: 10
A29: 38490038 | B29: 31 | C29: 38490029 | D29: 23 | F29: 45.9 | G29: 37.6 | H29: 39 | I29: 50.2 | J29: 47.1 | K29: 49.7 | L29: 48.4 | M29: 52.2 | N29: 54.8 | O29: 58.4 | P29: 58.7 | Q29: 62.8 | R29: 62.6 | S29: 64.8 | T29: 66.2 | U29: 69.2 | V29: 70.2 | W29: 71.2 | X29: 73.5 | Y29: 77 | Z29: 79.1 | AA29: 63 | AB29: 72 | AC29: 7.5 | AD29: 215 | AE29: 0 | AH29: -6.9 | AI29: -5.3 | AJ29: -8 | AK29: -0.7 | AL29: -0.3 | AM29: 6.2 | AN29: 8.4 | AO29: 14 | AP29: 11.2 | AQ29: 11.4 | AR29: 11.6 | AS29: 10.6 | AT29: 10.8 | AU29: 11.1 | AV29: 10.2 | AW29: 9.5 | AX29: 10 | AY29: 11.9 | AZ29: 11.5 | BA29: 8.7 | BB29: 8.2 | BC29: 9
A30: 38490039 | B30: 32 | C30: 38490029 | D30: 23 | F30: 45.9 | G30: 37.6 | H30: 39 | I30: 50.2 | J30: 47.1 | K30: 49.7 | L30: 48.4 | M30: 52.2 | N30: 54.8 | O30: 58.4 | P30: 58.7 | Q30: 62.8 | R30: 62.6 | S30: 64.8 | T30: 66.2 | U30: 69.2 | V30: 70.2 | W30: 71.2 | X30: 73.5 | Y30: 77 | Z30: 79.1 | AA30: 63 | AB30: 73 | AC30: 7.5 | AD30: 215 | AE30: 0 | AH30: -6.3 | AI30: -5.6 | AJ30: -7 | AK30: 2.5 | AL30: 4.7 | AM30: 7.7 | AN30: 9.5 | AO30: 15.1 | AP30: 10.3 | AQ30: 9.9 | AR30: 10.3 | AS30: 10.1 | AT30: 11.7 | AU30: 10.6 | AV30: 9 | AW30: 7.3 | AX30: 7.7 | AY30: 8.2 | AZ30: 10.2 | BA30: 9.2 | BB30: 9 | BC30: 10
A31: 38490041 | B31: 34 | C31: 38490029 | D31: 23 | F31: 45.9 | G31: 37.6 | H31: 39 | I31: 50.2 | J31: 47.1 | K31: 49.7 | L31: 48.4 | M31: 52.2 | N31: 54.8 | O31: 58.4 | P31: 58.7 | Q31: 62.8 | R31: 62.6 | S31: 64.8 | T31: 66.2 | U31: 69.2 | V31: 70.2 | W31: 71.2 | X31: 73.5 | Y31: 77 | Z31: 79.1 | AA31: 63 | AB31: 73 | AC31: 7.5 | AD31: 215 | AE31: 0 | AH31: -8.2 | AI31: -3.4 | AJ31: -6.3 | AK31: 2.6 | AL31: 3.5 | AM31: 8.6 | AN31: 10.1 | AO31: 13.2 | AP31: 10.7 | AQ31: 9.7 | AR31: 10.4 | AS31: 10.1 | AT31: 11.3 | AU31: 12 | AV31: 11.5 | AW31: 10.8 | AX31: 11.4 | AY31: 12.9 | AZ31: 12.4 | BA31: 9.4 | BB31: 9.2 | BC31: 10
A32: 38490042 | B32: 35 | C32: 38490029 | D32: 23 | F32: 45.9 | G32: 37.6 | H32: 39 | I32: 50.2 | J32: 47.1 | K32: 49.7 | L32: 48.4 | M32: 52.2 | N32: 54.8 | O32: 58.4 | P32: 58.7 | Q32: 62.8 | R32: 62.6 | S32: 64.8 | T32: 66.2 | U32: 69.2 | V32: 70.2 | W32: 71.2 | X32: 73.5 | Y32: 77 | Z32: 79.1 | AA32: 63 | AB32: 73 | AC32: 7.5 | AD32: 215 | AE32: 0 | AH32: -8.8 | AI32: 3.2 | AJ32: 0.4 | AK32: 4.9 | AL32: 3.5 | AM32: 8.6 | AN32: 9.4 | AO32: 13.1 | AP32: 10.8 | AQ32: 10 | AR32: 10.3 | AS32: 10 | AT32: 11 | AU32: 11.6 | AV32: 11.6 | AW32: 11.3 | AX32: 11.8 | AY32: 13.5 | AZ32: 12.9 | BA32: 9.6 | BB32: 8.9 | BC32: 10
A33: 38490043 | B33: 36 | C33: 38490029 | D33: 23 | F33: 45.9 | G33: 37.6 | H33: 39 | I33: 50.2 | J33: 47.1 | K33: 49.7 | L33: 48.4 | M33: 52.2 | N33: 54.8 | O33: 58.4 | P33: 58.7 | Q33: 62.8 | R33: 62.6 | S33: 64.8 | T33: 66.2 | U33: 69.2 | V33: 70.2 | W33: 71.2 | X33: 73.5 | Y33: 77 | Z33: 79.1 | AA33: 63 | AB33: 73 | AC33: 7.5 | AD33: 215 | AE33: 0 | AH33: -8.5 | AI33: 5.8 | AJ33: 1.7 | AK33: 6.8 | AL33: 2.7 | AM33: 8.9 | AN33: 9.4 | AO33: 12.2 | AP33: 10.5 | AQ33: 10 | AR33: 10.3 | AS33: 9.5 | AT33: 11.2 | AU33: 12.2 | AV33: 12.5 | AW33: 12.5 | AX33: 12.9 | AY33: 13.8 | AZ33: 12.9 | BA33: 9.7 | BB33: 9 | BC33: 10
A34: 38490044 | B34: 37 | C34: 38490029 | D34: 23 | F34: 45.9 | G34: 37.6 | H34: 39 | I34: 50.2 | J34: 47.1 | K34: 49.7 | L34: 48.4 | M34: 52.2 | N34: 54.8 | O34: 58.4 | P34: 58.7 | Q34: 62.8 | R34: 62.6 | S34: 64.8 | T34: 66.2 | U34: 69.2 | V34: 70.2 | W34: 71.2 | X34: 73.5 | Y34: 77 | Z34: 79.1 | AA34: 63 | AB34: 72 | AC34: 7.5 | AD34: 215 | AE34: 0 | AH34: -7.8 | AI34: -6.4 | AJ34: -6.6 | AK34: 0.3 | AL34: 5.4 | AM34: 8.5 | AN34: 9.4 | AO34: 11.7 | AP34: 9.6 | AQ34: 9.4 | AR34: 9.3 | AS34: 9.6 | AT34: 11.3 | AU34: 10.9 | AV34: 8.1 | AW34: 7.9 | AX34: 7.7 | AY34: 8.1 | AZ34: 10.3 | BA34: 9.2 | BB34: 8.5 | BC34: 9
A35: 38490045 | B35: 38 | C35: 38490029 | D35: 23 | F35: 45.9 | G35: 37.6 | H35: 39 | I35: 50.2 | J35: 47.1 | K35: 49.7 | L35: 48.4 | M35: 52.2 | N35: 54.8 | O35: 58.4 | P35: 58.7 | Q35: 62.8 | R35: 62.6 | S35: 64.8 | T35: 66.2 | U35: 69.2 | V35: 70.2 | W35: 71.2 | X35: 73.5 | Y35: 77 | Z35: 79.1 | AA35: 63 | AB35: 72 | AC35: 7.5 | AD35: 215 | AE35: 0.006 | AH35: -5.6 | AI35: -7.5 | AJ35: -10.4 | AK35: -4.8 | AL35: 1.2 | AM35: 5.8 | AN35: 8.5 | AO35: 11.3 | AP35: 12.2 | AQ35: 11.9 | AR35: 11.6 | AS35: 10.8 | AT35: 12.6 | AU35: 11.6 | AV35: 10 | AW35: 9.1 | AX35: 8.4 | AY35: 8.4 | AZ35: 9.4 | BA35: 6.3 | BB35: 5.8 | BC35: 9
A36: 38490046 | B36: 39 | C36: 38490029 | D36: 23 | F36: 45.9 | G36: 37.6 | H36: 39 | I36: 50.2 | J36: 47.1 | K36: 49.7 | L36: 48.4 | M36: 52.2 | N36: 54.8 | O36: 58.4 | P36: 58.7 | Q36: 62.8 | R36: 62.6 | S36: 64.8 | T36: 66.2 | U36: 69.2 | V36: 70.2 | W36: 71.2 | X36: 73.5 | Y36: 77 | Z36: 79.1 | AA36: 63 | AB36: 72 | AC36: 7.5 | AD36: 215 | AE36: 0 | AH36: -7 | AI36: 2.4 | AJ36: -3 | AK36: 2.6 | AL36: -2.9 | AM36: 5.9 | AN36: 9.4 | AO36: 10.8 | AP36: 11.6 | AQ36: 11.8 | AR36: 11.2 | AS36: 9.8 | AT36: 12 | AU36: 12.3 | AV36: 10.5 | AW36: 9.5 | AX36: 8.7 | AY36: 8.6 | AZ36: 9.6 | BA36: 8 | BB36: 7.5 | BC36: 9
A37: 38490047 | B37: 40 | C37: 38490029 | D37: 23 | F37: 45.9 | G37: 37.6 | H37: 39 | I37: 50.2 | J37: 47.1 | K37: 49.7 | L37: 48.4 | M37: 52.2 | N37: 54.8 | O37: 58.4 | P37: 58.7 | Q37: 62.8 | R37: 62.6 | S37: 64.8 | T37: 66.2 | U37: 69.2 | V37: 70.2 | W37: 71.2 | X37: 73.5 | Y37: 77 | Z37: 79.1 | AA37: 63 | AB37: 72 | AC37: 7.5 | AD37: 215 | AE37: 0.006 | AH37: -5.3 | AI37: -5.2 | AJ37: -9 | AK37: -2.5 | AL37: -1.4 | AM37: 4 | AN37: 8.7 | AO37: 12.7 | AP37: 12 | AQ37: 12.3 | AR37: 12.3 | AS37: 10.1 | AT37: 11.9 | AU37: 11.9 | AV37: 9.8 | AW37: 9 | AX37: 9.2 | AY37: 9.4 | AZ37: 10.4 | BA37: 7.8 | BB37: 7.3 | BC37: 9
A38: 38490048 | B38: 41 | C38: 38490029 | D38: 23 | F38: 45.9 | G38: 37.6 | H38: 39 | I38: 50.2 | J38: 47.1 | K38: 49.7 | L38: 48.4 | M38: 52.2 | N38: 54.8 | O38: 58.4 | P38: 58.7 | Q38: 62.8 | R38: 62.6 | S38: 64.8 | T38: 66.2 | U38: 69.2 | V38: 70.2 | W38: 71.2 | X38: 73.5 | Y38: 77 | Z38: 79.1 | AA38: 63 | AB38: 73 | AC38: 7.5 | AD38: 215 | AE38: 0 | AH38: -9 | AI38: 2.3 | AJ38: -4.3 | AK38: 5.7 | AL38: 1 | AM38: 5.3 | AN38: 9.6 | AO38: 13 | AP38: 12.8 | AQ38: 11.6 | AR38: 11.1 | AS38: 10.3 | AT38: 11.3 | AU38: 12.2 | AV38: 10.3 | AW38: 9.9 | AX38: 9.7 | AY38: 9.9 | AZ38: 10.3 | BA38: 7.5 | BB38: 7 | BC38: 10
A39: 38490049 | B39: 42 | C39: 38490029 | D39: 23 | F39: 45.9 | G39: 37.6 | H39: 39 | I39: 50.2 | J39: 47.1 | K39: 49.7 | L39: 48.4 | M39: 52.2 | N39: 54.8 | O39: 58.4 | P39: 58.7 | Q39: 62.8 | R39: 62.6 | S39: 64.8 | T39: 66.2 | U39: 69.2 | V39: 70.2 | W39: 71.2 | X39: 73.5 | Y39: 77 | Z39: 79.1 | AA39: 63 | AB39: 72 | AC39: 15 | AD39: 215 | AE39: 0.007 | AH39: -4.6 | AI39: -3.6 | AJ39: -3.3 | AK39: -1.8 | AL39: -0.3 | AM39: 4.6 | AN39: 7 | AO39: 12.4 | AP39: 12.5 | AQ39: 11.7 | AR39: 12.6 | AS39: 10.4 | AT39: 11.8 | AU39: 12.6 | AV39: 10.7 | AW39: 9.4 | AX39: 8.2 | AY39: 5.1 | AZ39: 4.8 | BA39: 7.2 | BB39: 7.3 | BC39: 9
A40: 38490050 | B40: 43 | C40: 38490029 | D40: 23 | F40: 45.9 | G40: 37.6 | H40: 39 | I40: 50.2 | J40: 47.1 | K40: 49.7 | L40: 48.4 | M40: 52.2 | N40: 54.8 | O40: 58.4 | P40: 58.7 | Q40: 62.8 | R40: 62.6 | S40: 64.8 | T40: 66.2 | U40: 69.2 | V40: 70.2 | W40: 71.2 | X40: 73.5 | Y40: 77 | Z40: 79.1 | AA40: 63 | AB40: 74 | AC40: 15 | AD40: 215 | AE40: 0 | AH40: -2.3 | AI40: 6.9 | AJ40: -0.7 | AK40: 6 | AL40: 0.8 | AM40: 10.4 | AN40: 10.3 | AO40: 16.1 | AP40: 12.8 | AQ40: 13.1 | AR40: 13.2 | AS40: 11.1 | AT40: 12.8 | AU40: 13.4 | AV40: 11.3 | AW40: 9.8 | AX40: 8.7 | AY40: 5.7 | AZ40: 5.1 | BA40: 8 | BB40: 6.5 | BC40: 11
A41: 38490051 | B41: 44 | C41: 38490029 | D41: 23 | F41: 45.9 | G41: 37.6 | H41: 39 | I41: 50.2 | J41: 47.1 | K41: 49.7 | L41: 48.4 | M41: 52.2 | N41: 54.8 | O41: 58.4 | P41: 58.7 | Q41: 62.8 | R41: 62.6 | S41: 64.8 | T41: 66.2 | U41: 69.2 | V41: 70.2 | W41: 71.2 | X41: 73.5 | Y41: 77 | Z41: 79.1 | AA41: 63 | AB41: 72 | AC41: 48 | AD41: 252 | AE41: 0.0163 | AH41: -5.4 | AI41: -4.8 | AJ41: -7 | AK41: -2.9 | AL41: -1.3 | AM41: 7.3 | AN41: 9 | AO41: 15 | AP41: 17 | AQ41: 16.3 | AR41: 15.7 | AS41: 13.8 | AT41: 12.8 | AU41: 10.9 | AV41: 8.8 | AW41: 4.9 | AX41: 7.4 | AY41: 5.4 | AZ41: 1.9 | BA41: 6.7 | BB41: 7 | BC41: 9
A42: 38490052 | B42: 45 | C42: 38490029 | D42: 23 | F42: 45.9 | G42: 37.6 | H42: 39 | I42: 50.2 | J42: 47.1 | K42: 49.7 | L42: 48.4 | M42: 52.2 | N42: 54.8 | O42: 58.4 | P42: 58.7 | Q42: 62.8 | R42: 62.6 | S42: 64.8 | T42: 66.2 | U42: 69.2 | V42: 70.2 | W42: 71.2 | X42: 73.5 | Y42: 77 | Z42: 79.1 | AA42: 63 | AB42: 78 | AC42: 48 | AD42: 252 | AE42: 0 | AH42: 1.3 | AI42: 5 | AJ42: 0.2 | AK42: 8.9 | AL42: 8.3 | AM42: 17.5 | AN42: 14.7 | AO42: 18.2 | AP42: 17.8 | AQ42: 15.6 | AR42: 18.5 | AS42: 16.5 | AT42: 16.9 | AU42: 13.2 | AV42: 13.3 | AW42: 7.1 | AX42: 11.4 | AY42: 11.4 | AZ42: 9.4 | BA42: 11.4 | BB42: 8.4 | BC42: 15
A43: 38490076 | B43: 48 | C43: 38490072 | D43: 47 | F43: 41 | G43: 27.4 | H43: 30.1 | I43: 50.3 | J43: 44.3 | K43: 51.4 | L43: 45 | M43: 51.9 | N43: 55.5 | O43: 58.2 | P43: 58.3 | Q43: 61.9 | R43: 62.8 | S43: 63.3 | T43: 66.3 | U43: 67.9 | V43: 70 | W43: 70.5 | X43: 71.2 | Y43: 72.6 | Z43: 75.9 | AA43: 62 | AB43: 75 | AC43: 30.5 | AD43: 227 | AE43: 0.007 | AH43: -5 | AI43: -0.7 | AJ43: -1.7 | AK43: -0.6 | AL43: 9.6 | AM43: 9.1 | AN43: 13.2 | AO43: 16.7 | AP43: 13.8 | AQ43: 15.6 | AR43: 15.2 | AS43: 13.8 | AT43: 13.9 | AU43: 13.9 | AV43: 12.6 | AW43: 11.4 | AX43: 7.1 | AY43: 5.4 | AZ43: 5.4 | BA43: 10.7 | BB43: 9.1 | BC43: 13
A44: 38490077 | B44: 49 | C44: 38490072 | D44: 47 | F44: 41 | G44: 27.4 | H44: 30.1 | I44: 50.3 | J44: 44.3 | K44: 51.4 | L44: 45 | M44: 51.9 | N44: 55.5 | O44: 58.2 | P44: 58.3 | Q44: 61.9 | R44: 62.8 | S44: 63.3 | T44: 66.3 | U44: 67.9 | V44: 70 | W44: 70.5 | X44: 71.2 | Y44: 72.6 | Z44: 75.9 | AA44: 62 | AB44: 76 | AC44: 30.5 | AD44: 227 | AE44: 0 | AH44: 0.6 | AI44: 2.5 | AJ44: -0.2 | AK44: 4.7 | AL44: 14.1 | AM44: 12.6 | AN44: 14.4 | AO44: 17.2 | AP44: 14.2 | AQ44: 15.7 | AR44: 15.7 | AS44: 14.4 | AT44: 14.5 | AU44: 13.6 | AV44: 13 | AW44: 12.1 | AX44: 9 | AY44: 9.5 | AZ44: 10 | BA44: 12.4 | BB44: 8.2 | BC44: 14
A45: 38490078 | B45: 50 | C45: 38490072 | D45: 47 | F45: 41 | G45: 27.4 | H45: 30.1 | I45: 50.3 | J45: 44.3 | K45: 51.4 | L45: 45 | M45: 51.9 | N45: 55.5 | O45: 58.2 | P45: 58.3 | Q45: 61.9 | R45: 62.8 | S45: 63.3 | T45: 66.3 | U45: 67.9 | V45: 70 | W45: 70.5 | X45: 71.2 | Y45: 72.6 | Z45: 75.9 | AA45: 62 | AB45: 77 | AC45: 30.5 | AD45: 227 | AE45: 0 | AH45: 0.7 | AI45: 3.2 | AJ45: 0.8 | AK45: 5.6 | AL45: 14.7 | AM45: 14.1 | AN45: 15.3 | AO45: 18.4 | AP45: 16.1 | AQ45: 17.1 | AR45: 17.4 | AS45: 15.6 | AT45: 15.3 | AU45: 14.1 | AV45: 13.5 | AW45: 12.6 | AX45: 9.5 | AY45: 9.8 | AZ45: 10.7 | BA45: 12.9 | BB45: 8.2 | BC45: 15
A46: 38490079 | B46: 51 | C46: 38490072 | D46: 47 | F46: 41 | G46: 27.4 | H46: 30.1 | I46: 50.3 | J46: 44.3 | K46: 51.4 | L46: 45 | M46: 51.9 | N46: 55.5 | O46: 58.2 | P46: 58.3 | Q46: 61.9 | R46: 62.8 | S46: 63.3 | T46: 66.3 | U46: 67.9 | V46: 70 | W46: 70.5 | X46: 71.2 | Y46: 72.6 | Z46: 75.9 | AA46: 62 | AB46: 75 | AC46: 30.5 | AD46: 227 | AE46: 0.007 | AH46: -7.1 | AI46: -1.8 | AJ46: -1.1 | AK46: 0.1 | AL46: 8.7 | AM46: 10.4 | AN46: 14.4 | AO46: 16.4 | AP46: 16.3 | AQ46: 17.8 | AR46: 17.1 | AS46: 15.3 | AT46: 14.7 | AU46: 13.9 | AV46: 13.2 | AW46: 12.2 | AX46: 7.8 | AY46: 5.8 | AZ46: 5.8 | BA46: 10.1 | BB46: 7.1 | BC46: 13
